[Event "German Bundesliga 2021-22"]
[Site "Germany"]
[Date "2022.05.01"]
[Round "6.7"]
[White "Andersen, Mads"]
[Black "Sebastian, Dirk"]
[Result "1-0"]
[ECO "A58"]
[WhiteElo "2570"]
[BlackElo "2445"]
[Annotator "TA"]
[PlyCount "65"]
[EventDate "2022.03.05"]
[EventType "team-tourn"]
[EventCountry "GER"]
[SourceTitle "playchess.com"]
[Source "ChessBase"]
[SourceQuality "1"]
[TimeControl "40/5400+30:1800+30"]

{[%evp 20,65,28,34,36,34,33,32,64,54,71,64,79,62,95,49,57,71,59,58,71,49,60,0,0,0,0,0,33,45,43,43,38,38,43,45,40,29,403,400,393,393,393,393,391,393,397,391]} 1. d4 {[%emt 0:00:00]} Nf6 {[%emt 0:00:00]} 2. c4 {[%emt 0:00:00][%cal Bc2c4,Bc4b5,Bb5a6][%mdl 32]} c5 {[%emt 0:00:00]} 3. d5 {[%emt 0:00:00]} b5 {[%emt 0:00:00]} 4. cxb5 {[%emt 0:00:00]} a6 {[%emt 0:00:00]} 5. bxa6 {[%emt 0:00:00]} g6 {[%emt 0:00:00]} 6. Nc3 {[%emt 0:00:00]} Bg7 {[%emt 0:00:00]} 7. e4 {[%emt 0:00:00]} O-O {[%emt 0:00:00][%cal Bh8f8,Bf8b8,Bb8b4][%mdl 32]} 8. Bc4 {[%emt 0:00:00]} d6 {[%emt 0:00:00]} 9. Nf3 {[%emt 0:00:00]} Bxa6 {[%emt 0:02:56]} 10. Bxa6 {[%emt 0:00:00]} Nxa6 {[%emt 0:01:34]} 11. O-O {[%emt 0:00:00]} Qa5 {[%emt 0:09:46] A57: Benko/Volga Gambit.} 12. a4 $5 {[%emt 0:37:20][%mdl 4] A promising side line.} Rfb8 {[%emt 0:07:42]} 13. Ra3 {[%emt 0:01:39] [#]} Rb4 $146 {[%emt 0:15:14] White is slightly better.} ({Predecessor:} 13... Nc7 14. Qc2 Nd7 15. Bd2 Qa6 16. h3 Qb7 17. Rb1 Ra6 18. Nd1 Rb6 19. Ba5 Ra6 20. Bd2 Rb6 21. Ba5 Ra6 22. Bd2 {½-½ (22) Richterova,N (2210)-Horak,M (2326) Czech Republic 2016}) 14. e5 {[%emt 0:07:00]} Ng4 {[%emt 0:27:28]} 15. exd6 {[%emt 0:13:16]} exd6 {[%emt 0:00:16]} 16. Nb5 {[%emt 0:00:15]} (16. Bd2 $5 {[%cal Rh2h3]}) 16... Qb6 {[%emt 0:11:21]} 17. b3 {[%emt 0:02:15]} (17. Bd2 $16) 17... Nc7 $14 {[%emt 0:01:20]} 18. Nxc7 {[%emt 0:05:06]} Qxc7 {[%emt 0:00:05]} 19. Bd2 {[%emt 0:00:59]} Rb6 {[%emt 0:08:59]} 20. a5 {[%emt 0:06:51]} (20. h3 $5 {[%cal Rh3g4]} Nf6 21. Bc3 $14) 20... Rbb8 {[%emt 0:00:41]} 21. Qc2 {[%emt 0:01:33]} (21. h3 $14 Ne5 22. Nxe5 Bxe5 23. Qc2) 21... Nf6 $11 {[%emt 0:02:54]} 22. Qc4 {[%emt 0:03:22]} Qb7 $1 {[%emt 0:06:00] Against b4} 23. Bf4 $36 {[%emt 0:02:26][%mdl 2048] White has good play.} Qxd5 {[%emt 0:00:08]} 24. Qxd5 {[%emt 0:00:58]} Nxd5 {[%emt 0:00:02]} 25. Bxd6 {[%emt 0:00:12]} Rb5 {[%emt 0:02:52]} 26. a6 {[%emt 0:04:53]} Nb4 {[%emt 0:00:05]} 27. a7 {[%emt 0:00:52]} Nc6 {[%emt 0:00:05]} 28. Re1 {[%emt 0:03:47][%cal Oe1e8] Hoping for Re8+!} Bf8 $2 {[%emt 0:01:22][%mdl 8192] [#] A mistake that costs the game.} (28... h6 $1 $11 {and Black is okay.}) 29. Re8 $3 $18 {[%emt 0:03:16][%mdl 512] White is winning.} Rxe8 {[%emt 0:01:33]} 30. a8=Q {[%emt 0:00:11]} Rxa8 {[%emt 0:00:15]} 31. Rxa8 {[%emt 0:00:09]} Rxb3 {[%emt 0:01:11] ( -> ...Rb1+)} 32. h4 {[%emt 0:02:16]} ({But not} 32. Rxf8+ Kg7 33. Ne1 c4 $18) 32... Rb1+ {[%emt 0:00:37]} 33. Kh2 {[%emt 0:00:06] Weighted Error Value: White=0.07 (flawless) /Black=0.49} 1-0

[Event "German Bundesliga 2021-22"]
[Site "Germany"]
[Date "2022.05.01"]
[Round "6.7"]
[White "Heinz, Timothee"]
[Black "Saltaev, Mihail"]
[Result "1/2-1/2"]
[ECO "E06"]
[WhiteElo "2374"]
[BlackElo "2482"]
[Annotator "TA"]
[PlyCount "139"]
[EventDate "2022.03.05"]
[EventType "team-tourn"]
[EventCountry "GER"]
[SourceTitle "playchess.com"]
[Source "ChessBase"]
[SourceQuality "1"]
[TimeControl "40/5400+30:1800+30"]

{[%evp 18,139,29,30,25,36,51,55,50,39,54,8,8,0,11,6,7,13,18,10,14,0,30,20,30,21,35,39,38,28,50,27,27,14,14,9,20,5,12,11,14,9,12,8,8,5,20,19,54,47,96,66,58,25,16,21,69,-34,-34,-32,-29,-48,-45,-104,-98,-112,-80,-65,-61,-62,-41,-41,-33,-30,-43,-74,0,0,0,0,0,-8,0,0,0,-8,0,0,0,-8,-8,-8,0,0,0,-261,-244,-218,-57,-65,0,0,0,0,0,0,0,0,0,0,0,0,0,0,0,0,0,0,0,0,0,0,0,-395]} 1. d4 {[%emt 0:00:00]} d5 {[%emt 0:00:00]} 2. Nf3 {[%emt 0:00:00]} Nf6 {[%emt 0:00:00]} 3. c4 {[%emt 0:00:00]} e6 {[%emt 0:00:00]} 4. g3 {[%emt 0:00:00]} Be7 {[%emt 0:00:00]} 5. Bg2 {[%emt 0:00:00]} O-O {[%emt 0:00:00]} 6. O-O {[%emt 0:00:00]} dxc4 {[%emt 0:00:00]} 7. Ne5 {[%emt 0:00:00]} c5 {[%emt 0:00:00]} 8. dxc5 {[%emt 0:00:00]} Qc7 {[%emt 0:00:00]} 9. Nxc4 {[%emt 0:00:00]} Qxc5 {[%emt 0:00:00]} 10. b3 {[%emt 0:00:57]} Rd8 {[%emt 0:00:00] E05: Open Catalan: 5 Nf3 Be7.} 11. Nbd2 {[%emt 0:01:22]} Qh5 {[%emt 0:04:29]} 12. e4 {[%emt 0:01:53]} Qxd1 {[%emt 0:09:49] White is slightly better.} ({Less strong is} 12... Ng4 13. h3 Nf6 14. Qxh5 Nxh5 15. e5 $16) 13. Rxd1 {[%emt 0:00:29] [#]} b5 $146 {[%emt 0:05:33] [#]} ({Predecessor:} 13... Nc6 14. Bb2 b5 15. Bxf6 gxf6 16. e5 Bb7 17. Nd6 Bxd6 18. exd6 f5 19. Nf3 Nb4 {½-½ (54) Rodriguez Melian,J (2095)-Armenteros Peral,J (1971) Gran Canaria 2019}) 14. Ne3 {[%emt 0:07:15]} (14. e5 $1 $14 {might be stronger.} Nd5 15. Ba3 $1 Bxa3 16. Nxa3) 14... Bb7 $11 {[%emt 0:01:04]} 15. Bb2 {[%emt 0:17:39]} Na6 {[%emt 0:03:36]} 16. e5 {[%emt 0:11:09][%csl LRb7,LRf6]} Nd5 {[%emt 0:00:14]} 17. Nxd5 {[%emt 0:00:07]} Bxd5 {[%emt 0:00:14]} 18. Bf1 {[%emt 0:03:12]} Nc7 {[%emt 0:18:35]} 19. Rdc1 {[%emt 0:03:38]} Rd7 {[%emt 0:03:54]} 20. Rc2 {[%emt 0:02:37]} a6 {[%emt 0:00:26]} 21. Rac1 {[%emt 0:02:48]} Ra7 {[%emt 0:08:35]} 22. Bd4 {[%emt 0:01:33]} Rb7 {[%emt 0:00:19]} 23. Bc5 {[%emt 0:00:06]} Bd8 {[%emt 0:06:17]} 24. a4 {[%emt 0:15:16]} f6 {[%emt 0:00:56]} 25. axb5 {[%emt 0:03:23]} axb5 {[%emt 0:00:16]} 26. exf6 {[%emt 0:02:27]} gxf6 {[%emt 0:01:58]} 27. Ra1 {[%emt 0:00:58]} Kf7 {[%emt 0:14:08]} 28. b4 {[%emt 0:13:29]} Be7 {[%emt 0:06:33]} 29. Ra5 {[%emt 0:01:26]} Rd8 {[%emt 0:03:46]} 30. Bxe7 {[%emt 0:00:46]} Kxe7 {[%emt 0:00:09]} 31. Rc5 {[%emt 0:00:24]} Rdb8 {[%emt 0:00:32]} 32. Nb1 {[%emt 0:02:05]} Kd6 {[%emt 0:00:37]} 33. Nc3 {[%emt 0:01:15]} Bc6 {[%emt 0:02:53]} (33... Rb6 $14) 34. h4 {[%emt 0:01:35] White is more active.} f5 {[%emt 0:01:23]} 35. Bg2 {[%emt 0:02:04]} (35. Ra2 $5 {[%cal Ra2d2]}) 35... Bxg2 {[%emt 0:02:23]} 36. Kxg2 {[%emt 0:00:02][%cal Og3g4]} Rb6 {[%emt 0:01:11]} (36... h6 $11 {is more appropriate.}) 37. Ra7 {[%emt 0:04:08]} (37. g4 $14) 37... Rc6 $15 {[%emt 0:01:51]} 38. Rxc6+ {[%emt 0:01:42]} Kxc6 {[%emt 0:00:02][%mdl 4096] Endgame KRN-KRN} 39. Kf3 {[%emt 0:00:21]} Rg8 {[%emt 0:03:38]} 40. Ra3 {[%emt 0:03:17]} (40. h5 $15) 40... Rg4 $17 {[%emt 0:00:26]} 41. Na2 {[%emt 0:00:00]} Rc4 {[%emt 0:00:00]} 42. Ke3 {[%emt 0:00:00]} h5 {[%emt 0:00:00]} 43. Kd3 {[%emt 0:00:00]} e5 {[%emt 0:00:00][%cal Be6e5,Be5e4][%mdl 32]} 44. Rc3 {[%emt 0:00:00]} e4+ {[%emt 0:00:00]} 45. Kd2 {[%emt 0:00:00]} Kd5 {[%emt 0:01:55]} 46. Ra3 {[%emt 0:00:00]} Kc6 {[%emt 0:06:46]} (46... Kd4 $17) 47. Rc3 $11 {[%emt 0:00:00]} Nd5 {[%emt 0:02:24]} 48. Rxc4+ {[%emt 0:01:31]} bxc4 {[%emt 0:00:07] KN-KN} 49. Kc2 {[%emt 0:00:03]} Kd6 {[%emt 0:02:28]} 50. Kd2 {[%emt 0:03:11]} Kc6 {[%emt 0:05:28]} 51. Kc2 {[%emt 0:00:09]} e3 {[%emt 0:00:57]} 52. fxe3 {[%emt 0:06:00]} Nxe3+ {[%emt 0:02:36]} 53. Kd2 {[%emt 0:00:55]} Nd5 {[%emt 0:04:52]} 54. Kc2 {[%emt 0:00:37]} Kd6 {[%emt 0:01:15]} 55. Kb2 {[%emt 0:06:53]} Ke5 {[%emt 0:02:39]} 56. Ka3 $2 {[%emt 0:00:06][%mdl 8192]} (56. b5 $1 $11) 56... Ke4 $19 {[%emt 0:04:04]} 57. Ka4 {[%emt 0:04:21] [#]} Kf3 $2 {[%emt 0:01:35]} ({Better is} 57... c3 $1 $19 {Strongly threatening ...Kd3.} 58. Kb3 Kd3) 58. Kb5 $15 {[%emt 0:00:06]} c3 {[%emt 0:02:36]} (58... Kxg3 $15 59. Kxc4 Nb6+ 60. Kc5 Nc8) 59. Kc5 $11 {[%emt 0:02:22] The position is equal.} Nxb4 {[%emt 0:00:57]} 60. Nxb4 {[%emt 0:03:26]} Kxg3 {[%emt 0:00:18] Hoping for ...f4.} 61. Kd4 {[%emt 0:00:09]} Kxh4 {[%emt 0:00:22] Threatens to win with ...Kg3.} 62. Kxc3 {[%emt 0:00:13] KN-KPP} Kg3 {[%emt 0:00:42]} 63. Kd2 {[%emt 0:00:09]} h4 {[%emt 0:00:47]} 64. Ke1 {[%emt 0:02:00]} h3 {[%emt 0:01:59] ( -> ...h2)} 65. Nd3 {[%emt 0:00:04]} h2 {[%emt 0:00:46]} 66. Nf2 {[%emt 0:00:03]} Kg2 {[%emt 0:00:11]} 67. Nh1 {[%emt 0:01:03]} f4 {[%emt 0:00:35]} 68. Nf2 {[%emt 0:00:06]} Kg1 {[%emt 0:00:54]} 69. Nh1 {[%emt 0:00:04]} Kxh1 $4 {[%emt 0:00:29][%mdl 8192]} (69... f3 $11) 70. Kf1 {[%emt 0:00:03][%mdl 32768] Weighted Error Value: White=0.18 (very precise) /Black=0.15 (very precise) . An unexpected result.} 1/2-1/2

[Event "German Bundesliga 2021-22"]
[Site "Germany"]
[Date "2022.05.01"]
[Round "6.7"]
[White "Lindgren, Philip"]
[Black "Gauglitz, Gernot"]
[Result "1/2-1/2"]
[ECO "D97"]
[WhiteElo "2361"]
[BlackElo "2392"]
[Annotator "TA"]
[PlyCount "166"]
[EventDate "2022.03.05"]
[EventType "team-tourn"]
[EventCountry "GER"]
[SourceTitle "playchess.com"]
[Source "ChessBase"]
[SourceQuality "1"]
[TimeControl "40/5400+30:1800+30"]

{[%evp 21,166,23,20,0,0,-25,-26,-179,0,0,33,-10,-19,-23,-7,0,0,0,-16,-86,0,-64,-59,-56,-67,-150,-19,-29,-16,-12,0,0,0,0,0,-6,-3,-6,0,-37,-42,-84,-86,-88,-83,-96,-72,-74,-66,-68,-81,-91,-15,-16,-27,-162,-162,-150,-112,-118,-45,-147,-8,-8,0,-43,0,-16,-8,-8,0,0,0,0,0,-16,0,-16,-16,-16,-16,-25,0,0,0,0,0,0,0,0,7,7,7,7,7,7,7,7,7,0,0,0,0,0,0,0,8,8,8,8,8,8,8,8,8,8,8,8,8,8,8,8,8,0,8,7,7,7,7,7,8,8,8,8,8,8,8,0,8,8,8,0,0,0,0,0,0]} 1. d4 {[%emt 0:00:00]} Nf6 {[%emt 0:00:00]} 2. c4 {[%emt 0:00:00]} g6 {[%emt 0:00:00]} 3. Nf3 {[%emt 0:00:00]} Bg7 {[%emt 0:00:00]} 4. Nc3 {[%emt 0:00:00]} d5 {[%emt 0:00:00]} 5. Qb3 {[%emt 0:00:00]} dxc4 {[%emt 0:00:00]} 6. Qxc4 {[%emt 0:00:00]} O-O {[%emt 0:00:00]} 7. e4 {[%emt 0:00:00]} Na6 {[%emt 0:00:00]} 8. Be2 {[%emt 0:00:00]} c5 {[%emt 0:00:00]} 9. d5 {[%emt 0:00:00]} e6 {[%emt 0:00:00]} 10. O-O {[%emt 0:00:00]} exd5 {[%emt 0:00:00]} 11. exd5 {[%emt 0:00:00]} Bf5 {[%emt 0:26:23]} 12. Nh4 {[%emt 0:10:00] D97: Grünfeld: Russian System: 7 e4, replies other than 7...Bg4.} Bd7 {[%emt 0:01:12]} 13. Rd1 {[%emt 0:02:51]} Re8 {[%emt 0:03:06][%cal Ob7b5] ...b5! is the strong threat.} 14. Be3 $2 {[%emt 0:03:21] [#]} (14. Nf3 $11) 14... Rc8 $146 {[%emt 0:04:53]} (14... b5 $1 $19 {[%cal Rb5c4]} 15. Qf4 (15. Nxb5 $2 Re4 $19) 15... b4 $1) ({Predecessor:} 14... b5 15. Qf4 b4 16. Nb5 Re4 17. Qg3 Ng4 18. Nf3 Nxe3 19. fxe3 Rxe3 20. Qf2 Qe8 {0-1 (47) Edouard,R (2587)-Le Roux,J (2517) Caen 2011}) 15. Nf3 $11 {[%emt 0:17:31]} Qa5 {[%emt 0:16:26]} 16. a4 {[%emt 0:11:30]} (16. d6 {is more complex.} Qb4 17. Ng5 Rf8 18. Qb3) 16... Nb4 {[%emt 0:04:12][%cal Ba6b4,Bb4c2,Bc2d4][%mdl 32] Black wants to play ...Nc2.} 17. Rd2 {[%emt 0:12:04] Against Nc2} a6 {[%emt 0:05:42]} 18. Qh4 {[%emt 0:04:03]} Bf5 {[%emt 0:05:53] aiming for ...Nc2.} 19. d6 {[%emt 0:16:32]} Nc2 {[%emt 0:02:42]} 20. Bg5 {[%emt 0:01:11]} Nd7 {[%emt 0:06:03]} (20... Nxa1 $17 21. Bxf6 Nb3) 21. Rc1 {[%emt 0:03:03]} (21. Rad1 $11) 21... Nd4 $1 $15 {[%emt 0:00:56]} 22. Be7 {[%emt 0:06:23]} Qb4 {[%emt 0:06:06][%cal Oe8e7]} 23. Bd1 {[%emt 0:07:03] [#]} (23. Rcd1 $15) 23... Bf8 {[%emt 0:05:22]} (23... Be6 $1 $17 {[%cal Oe8e7] White must now prevent ...Rxe7!} 24. g3 (24. Ng5 $2 Ne2+ 25. Bxe2 Qxh4 $19) 24... Nf5 25. Qxb4 cxb4) 24. Nxd4 $11 {[%emt 0:05:01]} ({Don't go for} 24. Ng5 $2 {[#]} Ne2+ $1 {[%mdl 512]} 25. Bxe2 Qxh4 $19) 24... cxd4 {[%emt 0:00:27]} 25. Qxd4 {[%emt 0:00:35]} ({Wrong is} 25. Rxd4 $2 Qxb2 26. g4 Be6 $19) 25... Qxd4 {[%emt 0:00:05]} (25... Rc4 {with more complications.} 26. Qe3 Bxe7 27. Be2 Rcc8) 26. Rxd4 {[%emt 0:00:05]} Bxe7 {[%emt 0:00:09]} 27. dxe7 {[%emt 0:00:05]} Rxe7 {[%emt 0:00:03][%cal Re7e1]} 28. Bf3 {[%emt 0:01:05]} Ne5 $40 {[%emt 0:00:13][%mdl 128] Black has some attack.} 29. Be4 {[%emt 0:02:01]} Be6 {[%emt 0:02:20]} 30. Rcd1 {[%emt 0:00:28]} Nc4 {[%emt 0:00:31]} 31. Rd8+ {[%emt 0:00:35]} Rxd8 {[%emt 0:00:05]} 32. Rxd8+ {[%emt 0:00:06]} Kg7 {[%emt 0:00:02]} 33. Rb8 {[%emt 0:00:45]} Bd5 {[%emt 0:07:06]} 34. Nxd5 {[%emt 0:00:39]} Rxe4 $17 {[%emt 0:00:05][%cal Re4e1][%mdl 4096] Endgame KRN-KRN} 35. f3 {[%emt 0:00:28]} Rd4 {[%emt 0:00:25]} 36. Nc3 {[%emt 0:00:32]} Nxb2 {[%emt 0:01:15]} ({Black should try} 36... Nd6 $17) 37. Rxb7 $11 {[%emt 0:00:28]} Nxa4 {[%emt 0:00:05]} 38. Nxa4 {[%emt 0:00:32]} (38. Ne4 $1 $11 {and White has nothing to worry.}) 38... Rxa4 $17 {[%emt 0:00:06] KR-KR} 39. Kf2 {[%emt 0:00:30]} Ra2+ {[%emt 0:00:27]} 40. Kg3 {[%emt 0:00:13]} g5 {[%emt 0:01:33]} (40... a5 $17 {Threatens to win with ...a4.} 41. Ra7 a4) 41. Rb6 {[%emt 0:30:39]} (41. Rb4 $1 $15) 41... h5 {[%emt 0:33:33]} (41... Ra4 $17 {Hoping for ...a5.} 42. f4 Rxf4 43. Rxa6 h5) 42. h4 $1 $11 {[%emt 0:00:00]} f6 {[%emt 0:00:00]} 43. Rc6 {[%emt 0:00:00]} Ra5 {[%emt 0:00:00]} 44. Rb6 {[%emt 0:00:00]} Kg6 {[%emt 0:00:00]} 45. hxg5 {[%emt 0:00:00]} Rxg5+ {[%emt 0:00:00]} 46. Kh3 {[%emt 0:00:00]} a5 {[%emt 0:00:00]} 47. Ra6 {[%emt 0:00:00]} Rc5 {[%emt 0:00:00]} 48. Kh4 {[%emt 0:00:00]} Rb5 {[%emt 0:00:00]} 49. Ra8 {[%emt 0:00:00]} Rb4+ {[%emt 0:00:00]} 50. Kh3 {[%emt 0:00:00]} a4 {[%emt 0:00:00]} 51. g3 {[%emt 0:00:00]} Kg5 {[%emt 0:00:00]} 52. Ra5+ {[%emt 0:00:00] The position is equal.} f5 {[%emt 0:00:00]} 53. f4+ {[%emt 0:00:00]} Kg6 {[%emt 0:00:00]} 54. Ra6+ {[%emt 0:00:00]} Kg7 {[%emt 0:00:00]} 55. Kh4 {[%emt 0:00:00]} Rb3 {[%emt 0:00:00]} 56. Rxa4 {[%emt 0:00:00]} Kg6 {[%emt 0:00:00]} 57. Ra6+ {[%emt 0:00:00]} Kg7 {[%emt 0:00:00]} 58. Ra8 {[%emt 0:00:00]} Kg6 {[%emt 0:00:00]} 59. Rg8+ {[%emt 0:00:00]} Kf6 {[%emt 0:00:00]} 60. Kxh5 {[%emt 0:00:00]} Kf7 {[%emt 0:00:00]} 61. Rg5 {[%emt 0:00:00]} Kf6 {[%emt 0:00:00]} 62. Kh4 {[%emt 0:02:07]} Rb8 {[%emt 0:00:00]} 63. Kh3 {[%emt 0:00:30]} Rh8+ {[%emt 0:00:00]} 64. Kg2 {[%emt 0:00:08]} Ra8 {[%emt 0:00:00]} 65. Rh5 {[%emt 0:00:42]} Kg6 {[%emt 0:00:00]} 66. Rh1 {[%emt 0:00:41]} Ra2+ {[%emt 0:00:00]} 67. Kh3 {[%emt 0:00:30]} Ra3 {[%emt 0:00:00]} 68. Rb1 {[%emt 0:00:52]} Rc3 {[%emt 0:00:09]} 69. Rb6+ {[%emt 0:01:31]} Kg7 {[%emt 0:00:05]} 70. Kh4 {[%emt 0:00:48]} Ra3 {[%emt 0:00:04]} 71. Rb7+ {[%emt 0:00:49]} Kg6 {[%emt 0:00:08]} 72. Rb6+ {[%emt 0:00:04]} Kg7 {[%emt 0:00:04]} 73. Kg5 {[%emt 0:00:41]} Rxg3+ {[%emt 0:00:06]} 74. Kxf5 {[%emt 0:00:04]} Ra3 {[%emt 0:00:13]} 75. Rb7+ {[%emt 0:00:29]} Kf8 {[%emt 0:00:06]} 76. Kg5 {[%emt 0:02:29]} Ra6 {[%emt 0:00:13]} 77. f5 {[%emt 0:00:07]} Rc6 {[%emt 0:00:09]} 78. Rb8+ {[%emt 0:00:47]} Kf7 {[%emt 0:00:05]} 79. Rb7+ {[%emt 0:00:13]} Kf8 {[%emt 0:00:05]} 80. Rh7 {[%emt 0:00:54]} Ra6 {[%emt 0:00:12]} 81. Rh6 {[%emt 0:00:22]} Rxh6 {[%emt 0:02:30]} 82. Kxh6 {[%emt 0:00:06] White wants to mate with Kg6.} Kf7 {[%emt 0:00:02]} 83. f6 {[%emt 0:00:05]} Kxf6 {[%emt 0:00:06] Weighted Error Value: White=0.26 (precise) /Black=0.28 (precise)} 1/2-1/2

[Event "German Bundesliga 2021-22"]
[Site "Germany"]
[Date "2022.05.01"]
[Round "6.8"]
[White "Hausrath, Daniel"]
[Black "Agrest, Inna"]
[Result "1-0"]
[ECO "A05"]
[WhiteElo "2475"]
[BlackElo "2258"]
[Annotator "TA"]
[PlyCount "117"]
[EventDate "2022.03.05"]
[EventType "team-tourn"]
[EventCountry "GER"]
[SourceTitle "playchess.com"]
[Source "ChessBase"]
[SourceQuality "1"]
[TimeControl "40/5400+30:1800+30"]

{[%evp 12,117,20,23,30,26,55,46,51,53,39,30,50,27,16,17,22,0,26,0,0,-14,-14,0,0,0,-1,-29,-20,-17,-19,-19,-20,-30,-25,-27,0,0,0,6,39,0,-7,-43,66,0,53,71,174,166,222,223,199,233,236,178,268,270,281,245,308,92,92,101,92,57,279,295,414,414,487,489,489,470,483,489,480,480,480,470,474,474,466,466,466,464,455,455,455,410,571,555,579,550,894,889,873,845,811,806,1638,1357,6466,2697,1803,1616,6815,5818]} 1. Nf3 {[%emt 0:00:00]} Nf6 {[%emt 0:00:00]} 2. g3 {[%emt 0:00:00]} g6 {[%emt 0:00:00]} 3. b3 {[%emt 0:00:00]} Bg7 {[%emt 0:00:00]} 4. Bb2 {[%emt 0:00:00]} O-O {[%emt 0:00:00]} 5. Bg2 {[%emt 0:00:00]} d6 {[%emt 0:00:00]} 6. d4 {[%emt 0:00:00]} Nbd7 {[%emt 0:00:00]} 7. O-O {[%emt 0:00:00]} a5 {[%emt 0:00:00] A49: 1 d4 Nf6 2 Nf3 g6 3 g3: Anti-King's Indian systems.} 8. c4 {[%emt 0:00:00]} a4 {[%emt 0:00:00]} 9. Nc3 {[%emt 0:00:40]} (9. bxa4 Nb6 $15) 9... a3 {[%emt 0:01:05] White is slightly better.} 10. Bc1 {[%emt 0:00:22]} c6 {[%emt 0:06:29] [#]} 11. h3 $146 {[%emt 0:06:52]} ({Predecessor:} 11. Bg5 Qa5 12. Bd2 Qc7 13. Qc1 e5 14. Bh6 Re8 15. Bxg7 Kxg7 16. dxe5 dxe5 17. Ne1 {0-1 (53) Wisniewski,A (2351)-Budzisz,A (1985) Katowice 2021}) 11... Re8 {[%emt 0:12:07]} 12. Be3 {[%emt 0:02:17]} e5 {[%emt 0:04:35]} 13. dxe5 {[%emt 0:08:02]} dxe5 {[%emt 0:00:19]} 14. Qd2 {[%emt 0:03:40]} Bf8 {[%emt 0:24:56]} 15. Ne1 {[%emt 0:16:37]} Nc5 {[%emt 0:11:16]} 16. Rd1 {[%emt 0:13:57]} Qxd2 {[%emt 0:14:49]} 17. Bxd2 {[%emt 0:00:44]} h5 {[%emt 0:04:33]} 18. Nc2 {[%emt 0:17:02]} Bf5 {[%emt 0:03:53]} 19. Rc1 {[%emt 0:03:57]} Red8 {[%emt 0:04:28]} 20. Bg5 {[%emt 0:04:48]} Kg7 {[%emt 0:03:00]} 21. Ne3 {[%emt 0:01:12]} Rd7 {[%emt 0:05:20]} 22. f4 {[%emt 0:08:22]} Nh7 {[%emt 0:01:18]} 23. Bh4 $1 {[%emt 0:00:18]} Be6 {[%emt 0:01:39][%cal Oc5b3]} 24. f5 {[%emt 0:01:29] Strongly threatening g4.} (24. fxe5 $2 g5 25. Bxg5 Nxg5 $19) 24... g5 {[%emt 0:01:06]} 25. fxe6 {[%emt 0:01:53]} fxe6 {[%emt 0:00:15]} 26. b4 {[%emt 0:02:10] aiming for Bxg5.} Na6 {[%emt 0:00:35]} 27. b5 {[%emt 0:01:44] [#]} Nb4 {[%emt 0:00:59] [#]} (27... Bc5 $1 $15 28. Kf2 (28. bxc6 $2 Bxe3+ 29. Kh2 bxc6 $19) (28. Rf3 g4 $17) 28... Rf8+ 29. Bf3 gxh4 30. bxa6 hxg3+ 31. Kxg3 Bxe3) 28. Rb1 {[%emt 0:03:30]} gxh4 {[%emt 0:00:43]} ({Better is} 28... Bc5 $11) 29. Rxf8 $1 $14 {[%emt 0:00:46][%mdl 64] Remove Defender} Rxf8 {[%emt 0:00:34]} (29... Nxf8 $16 30. Rxb4 c5) 30. Rxb4 $18 {[%emt 0:00:02]} c5 {[%emt 0:00:28]} (30... hxg3 $142 31. bxc6 bxc6 32. Bxc6 Rd4) 31. Rb3 {[%emt 0:00:49]} hxg3 {[%emt 0:00:27]} 32. Ne4 {[%emt 0:00:12]} ({Don't take} 32. Rxa3 Nf6 33. Ra7 b6) 32... b6 {[%emt 0:00:19]} 33. Nxg3 {[%emt 0:00:24] Pair of Knights!} Nf6 {[%emt 0:00:37]} (33... Rd2 $142) 34. Rxa3 {[%emt 0:01:17]} Rd2 {[%emt 0:00:24]} 35. Bf3 {[%emt 0:02:04]} Kh6 {[%emt 0:00:53]} 36. Rd3 $2 {[%emt 0:02:05]} (36. h4 $18 {is more deadly.}) 36... Rd8 $16 {[%emt 0:00:39]} 37. Rxd8 {[%emt 0:00:27]} Rxd8 {[%emt 0:00:02]} 38. Ne4 {[%emt 0:01:02]} Ne8 {[%emt 0:00:52] A mistake that costs the game.} (38... Nxe4 $14 39. Bxe4 Rd2) 39. h4 $18 {[%emt 0:00:33]} Rd7 {[%emt 0:00:35]} (39... Ra8 $142 40. Nxc5 Ra3) 40. Ng5 {[%emt 0:00:28]} Ng7 {[%emt 0:00:27]} 41. Be4 {[%emt 0:30:33]} Re7 {[%emt 0:00:00]} 42. a4 {[%emt 0:00:00][%cal Oa4a5]} Ne8 {[%emt 0:00:00] [#]} 43. Bd5 $1 {[%emt 0:00:00][%mdl 512]} Ra7 {[%emt 0:00:00]} 44. Bxe6 {[%emt 0:00:00]} Nd6 {[%emt 0:00:00]} 45. Nf5+ {[%emt 0:00:00]} Nxf5 {[%emt 0:00:00]} 46. Bxf5 {[%emt 0:00:00]} Rxa4 {[%emt 0:00:00]} 47. Be6 {[%emt 0:00:00]} ({Less strong is} 47. Nf7+ Kg7 48. Nd6 (48. Nxe5 $2 Kf6 $17) 48... Ra8 $18) 47... Kg6 {[%emt 0:00:00]} 48. Ne4 {[%emt 0:00:00]} Ra1+ {[%emt 0:00:00]} 49. Kg2 {[%emt 0:00:00]} Re1 {[%emt 0:00:00]} 50. Nc3 {[%emt 0:00:00]} Kf6 {[%emt 0:00:40]} 51. Bd5 {[%emt 0:00:00] White is clearly winning.} Kf5 {[%emt 0:01:30]} 52. Bf3 {[%emt 0:00:00] Na4 is the strong threat.} Rc1 {[%emt 0:07:01]} 53. Nd5 {[%emt 0:00:00]} e4 {[%emt 0:00:39]} 54. Bxh5 {[%emt 0:00:00]} Ke5 {[%emt 0:01:01]} 55. Nxb6 {[%emt 0:00:00]} Kd4 {[%emt 0:00:28]} 56. Bg4 {[%emt 0:00:00] And now h5 would win.} Ra1 {[%emt 0:02:38]} 57. h5 {[%emt 0:00:00]} Ra7 {[%emt 0:00:34]} 58. Nd7 {[%emt 0:00:00] Hoping for b6.} Kxc4 {[%emt 0:00:42]} 59. b6 {[%emt 0:00:00] Weighted Error Value: White=0.20 (precise) /Black=0.34} 1-0